bitfinex/quotes_ETHUSD_20250220
["timestamp","ask_amount","ask_price","bid_price","bid_amount"]
[1740082304614,5.36,2759.2,2759.1,4.59443901]
[1740082305633,5.36,2759.2,2759.1,0.97006901]
[1740082307202,3.62399,2759.4,2759.1,0.97006901]
[1740082307533,1.503676,2759.4,2759.1,0.19236901]
[1740082307704,3.62423,2759.3,2759.1,0.19236901]
[1740082308302,3.62423,2759.2,2759.1,0.19236901]
[1740082309140,3.62423,2759.2,2758.8,0.55]
[1740082309502,3.62423,2759.3,2758.7,0.265]
[1740082309705,3.62424,2759.2,2758.7,3.88989]
[1740082310138,3.62448,2759.1,2758.8,0.19225873]
[1740082310658,4.41586,2759.0,2758.8,0.19225873]
[1740082311202,4.41586,2759.0,2758.5,3.62515]
[1740082311402,3.62482,2758.8,2758.4,0.7612]
[1740082312314,3.62494,2758.7,2758.5,0.19228706]
[1740082313504,3.62469,2758.9,2758.4,3.6252]
[1740082313705,0.0075,2758.9,2758.5,3.62515]
[1740082313928,3.63214,2758.9,2758.5,3.62515]
[1740082314342,3.63214,2758.9,2758.3,3.81766706]
[1740082314537,3.63214,2758.9,2758.4,3.62517]
[1740082314853,3.63214,2758.9,2758.4,7.25039]
[1740082315062,3.63214,2758.9,2758.4,7.44267706]
[1740082315222,3.63214,2758.9,2758.4,8.22087706]
[1740082315427,3.63214,2758.9,2758.4,4.59565706]
[1740082315819,4.972929,2758.9,2758.4,4.59565706]
[1740082316016,8.597639,2758.9,2758.5,0.19228706]
[1740082316245,10.332929,2758.9,2758.5,0.19228706]
[1740082317010,3.6249,2758.7,2758.5,0.19228706]
[1740082317718,6.708289,2758.9,2758.2,4.40364]
[1740082317915,5.3675,2758.9,2758.5,3.62509]
[1740082318146,5.36,2758.9,2758.5,3.62513]
[1740082318333,8.9847,2758.9,2758.3,7.2506]
[1740082318654,8.9847,2758.9,2758.3,3.62529]
[1740082318855,8.9847,2758.9,2758.4,0.19211924]
[1740082319056,8.9847,2758.9,2758.5,3.62514]
[1740082319355,8.9847,2758.9,2758.4,0.19211924]
[1740082319557,8.9847,2758.9,2758.4,3.81733924]
[1740082319734,9.9623,2758.9,2758.4,0.19211924]
[1740082319930,3.62491,2758.7,2758.4,0.19211924]
[1740082320122,9.96233,2758.9,2758.2,0.7782]
[1740082320323,3.62476,2758.8,2758.3,3.62534]
[1740082321097,3.62496,2758.7,2758.3,3.62534]
[1740082321243,0.7744,2759.4,2758.6,0.7891]
[1740082321549,0.7676,2759.0,2758.6,3.62502]
[1740082321757,0.7676,2759.0,2758.6,3.62498]
[1740082321974,0.7676,2759.0,2758.7,3.62485]
[1740082322142,0.0075,2759.1,2758.7,3.62481]
[1740082322555,0.7843,2759.4,2758.8,4.43233]
[1740082322751,0.7843,2759.4,2758.8,4.43235]
[1740082322942,4.40828,2759.4,2758.9,3.62453]
[1740082323161,4.40828,2759.4,2759.0,3.62445]
[1740082323162,0.7843,2759.4,2759.0,3.62445]
[1740082323582,4.40827,2759.4,2758.9,7.24908]
[1740082323948,4.40827,2759.4,2759.0,3.62448]
[1740082324174,0.7843,2759.4,2758.9,3.62453]
[1740082324546,0.7843,2759.4,2758.9,7.24907]
[1740082324746,4.40828,2759.4,2758.9,7.24907]
[1740082324945,8.03234,2759.4,2758.9,3.62453]
[1740082325146,5.748264,2759.4,2758.9,3.62453]
[1740082326071,5.748264,2759.4,2758.9,3.62462]
[1740082326280,3.62417,2759.3,2758.7,3.62479]
[1740082326482,0.0075,2759.3,2758.8,3.62475]
[1740082326655,0.8322,2759.1,2758.7,3.62488]
[1740082327000,3.62452,2759.0,2758.6,3.62496]
[1740082327285,4.45657,2759.1,2758.6,3.62493]
[1740082327579,0.7773,2758.8,2758.4,0.265]
[1740082327802,4.40217,2758.8,2758.4,0.265]
[1740082328593,3.62496,2758.7,2758.2,3.62554]
[1740082328956,3.62496,2758.7,2758.2,3.62548]
[1740082329197,3.62496,2758.7,2758.2,7.25092]
[1740082329595,3.62496,2758.7,2758.0,3.62572]
[1740082329596,0.015,2758.6,2758.0,3.62572]
[1740082329796,0.8307,2758.4,2758.3,0.19211977]
[1740082329964,6.1907,2758.4,2758.3,0.19211977]
[1740082331006,6.1907,2758.4,2758.0,3.62572]
[1740082331499,6.1907,2758.4,2758.1,3.62568]
[1740082331701,5.36,2758.4,2758.3,3.62542]
[1740082333799,5.36,2758.4,2758.3,3.81742578]
[1740082333998,6.191,2759.0,2758.5,3.62505]
[1740082334198,9.81551,2759.0,2758.5,3.62505]
[1740082334416,3.63215,2758.9,2758.4,3.62528]
[1740082334618,4.43097,2758.8,2758.3,3.81741578]
[1740082334825,0.805562,2758.7,2758.3,3.81741578]
[1740082335006,3.62504,2758.6,2758.3,0.19200578]
[1740082335608,3.62504,2758.6,2758.1,3.62559]
[1740082335813,0.805562,2758.7,2758.1,3.62559]
[1740082336016,0.0075,2758.7,2758.3,3.62531]
[1740082337468,4.43104,2758.8,2758.3,3.62537]
[1740082337817,3.625,2758.7,2758.2,3.62553]
[1740082338012,3.62511,2758.6,2758.0,4.4204]
[1740082338412,0.0075,2758.7,2758.0,0.7947]
[1740082338574,4.377026,2758.7,2758.2,3.62547]
[1740082339734,3.62512,2758.6,2758.1,3.62566]
[1740082340239,0.7613,2758.4,2757.8,2.3485217]
[1740082340402,0.7613,2758.4,2758.1,3.62564]
[1740082341349,4.38659,2758.4,2757.9,3.62582]
[1740082341642,4.825249,2758.4,2758.2,0.192164]
[1740082341843,0.0075,2757.9,2757.2,0.72550029]
[1740082341990,4.38757,2757.7,2757.2,3.62684]
[1740082342184,4.38757,2757.7,2757.2,7.25364]
[1740082342385,4.38757,2757.7,2757.5,3.62635]
[1740082342386,0.7613,2757.7,2757.5,3.62635]
[1740082342618,0.7613,2757.7,2757.3,3.62665]
[1740082342796,0.7613,2757.7,2757.3,3.62666]
[1740082343238,0.7613,2757.7,2757.4,3.6266]
[1740082343795,0.7613,2757.7,2757.3,3.62666]
[1740082343996,0.7613,2757.7,2757.5,3.62645]
[1740082349343,0.7876,2758.1,2757.5,0.725311]
[1740082349635,5.36,2758.2,2757.9,3.62584]
[1740082350626,5.36,2758.2,2758.0,3.62571]
[1740082350832,5.36,2758.2,2757.9,3.62592]
[1740082351036,5.36,2758.2,2757.7,0.7759]
[1740082351037,8.98555,2758.2,2757.7,3.6261]
[1740082351208,0.984815,2758.1,2757.7,3.6261]
[1740082351409,4.610515,2758.1,2757.6,3.62624]
[1740082351603,0.7679,2758.0,2757.6,3.62624]
[1740082352006,6.1279,2758.2,2757.6,0.55]
[1740082352254,6.1279,2758.2,2758.0,3.62571]
[1740082352450,6.1279,2758.2,2757.9,3.62594]
[1740082353035,6.1279,2758.2,2757.9,3.62584]
[1740082353558,6.1279,2758.2,2757.8,3.62598]
[1740082354041,6.1279,2758.2,2757.9,3.62594]
[1740082354406,6.1279,2758.2,2757.7,0.7864]
[1740082354742,6.1279,2758.2,2757.9,3.62594]
[1740082354909,6.1279,2758.2,2757.7,0.7864]
[1740082355109,9.75345,2758.2,2757.8,3.62607]
[1740082355407,9.75345,2758.2,2757.7,0.7864]
[1740082355408,3.6257,2758.1,2757.6,3.62623]
[1740082355632,3.6257,2758.1,2757.4,4.1765]
[1740082355633,0.015,2758.0,2757.4,3.62652]
[1740082355817,3.62629,2757.7,2757.2,3.89174]
[1740082356731,3.62629,2757.7,2757.2,7.51853]
[1740082357335,3.63368,2757.8,2757.3,3.62667]
[1740082357634,0.0075,2757.8,2757.4,3.62657]
[1740082358034,0.8279,2757.9,2757.6,3.62631]
[1740082358343,5.36,2758.0,2757.6,3.62626]
[1740082359155,8.98584,2758.0,2757.5,0.8202]
[1740082359450,0.0075,2757.9,2757.4,3.62649]
[1740082359618,3.62609,2757.8,2757.2,4.70479]
[1740082359819,3.62609,2757.8,2757.3,3.62666]
[1740082360157,0.0075,2757.9,2757.3,3.62666]
[1740082360358,3.63345,2757.9,2757.4,3.6266]
[1740082360964,5.3675,2757.9,2757.5,3.62644]
[1740082361260,9.45301403,2757.9,2757.5,3.62644]
[1740082361431,9.45301403,2757.9,2757.3,3.6266]
[1740082361633,9.45301403,2757.9,2757.2,4.70476]
[1740082361834,9.45301403,2757.9,2757.4,3.62659]
[1740082362027,9.45301403,2757.9,2757.5,3.62646]
[1740082363052,5.82706403,2757.9,2757.5,3.62646]
[1740082363260,9.45302403,2757.9,2757.4,3.62655]
[1740082364660,13.07905403,2757.9,2757.4,3.62655]
[1740082364862,3.62615,2757.8,2757.3,3.6267]
[1740082365046,0.7786,2757.7,2757.3,3.6267]
[1740082365253,0.7786,2757.7,2757.3,3.62667]
[1740082365446,0.7786,2757.7,2757.4,3.62652]
[1740082366144,0.7786,2757.7,2757.2,3.89186]
[1740082366351,4.40493,2757.7,2757.2,3.89186]
[1740082367152,0.7786,2757.7,2757.3,3.62672]
[1740082367360,0.7786,2757.7,2757.3,3.81833659]
[1740082368731,0.7786,2757.7,2757.3,3.62672]
[1740082368932,0.7786,2757.7,2757.3,7.25339]
[1740082369154,0.7786,2757.7,2757.3,3.62667]
[1740082369576,0.7786,2757.7,2757.1,3.6269]
[1740082369577,0.0075,2757.6,2757.1,3.6269]
[1740082369883,3.63385,2757.6,2757.2,3.62685]
[1740082370031,3.63385,2757.6,2757.2,0.19177088]
[1740082370032,0.0075,2757.6,2757.2,0.19177088]
[1740082370228,3.63386,2757.6,2757.2,0.19177088]
[1740082371766,3.63386,2757.6,2757.3,0.19177088]
[1740082371964,4.54003554,2757.6,2757.3,0.19177088]
[1740082372789,6.27367554,2757.6,2757.3,0.19177088]
[1740082372993,5.3675,2757.6,2757.3,0.19177088]
[1740082373269,8.99387,2757.6,2757.4,0.19177088]
[1740082373652,5.3675,2757.6,2757.4,0.19177088]
[1740082373841,5.36,2757.6,2757.5,3.62647]
[1740082374364,5.36,2757.6,2757.5,0.19177088]
[1740082374571,5.36,2757.6,2757.5,3.81824088]
[1740082376165,5.36,2757.6,2757.5,0.19177088]
[1740082377239,5.36,2757.6,2757.5,3.81824088]
[1740082378548,8.98589,2758.0,2757.5,3.81824088]
[1740082378974,0.015,2757.7,2757.5,0.19177088]
[1740082379147,4.39494,2757.6,2757.5,0.19177088]
[1740082379972,3.62676,2757.3,2757.1,0.19177088]
[1740082380153,8.9866,2757.4,2757.1,0.19177088]
[1740082380470,5.36,2757.4,2757.1,1.39387297]
[1740082380651,5.36,2757.4,2757.1,3.81869088]
[1740082381171,5.36,2757.4,2757.1,0.19177088]
[1740082381374,5.36,2757.4,2757.2,3.62679]
[1740082381666,5.36,2757.4,2757.2,3.81856088]
[1740082381872,5.36,2757.4,2757.3,3.62673]
[1740082382082,5.36,2757.4,2757.3,4.45783]
[1740082382257,5.36,2757.4,2757.3,3.62673]
[1740082382461,5.36,2758.1,2757.9,3.62594]
[1740082382666,0.7506,2758.3,2758.0,3.62572]
[1740082383676,0.7506,2758.3,2757.9,3.62594]
[1740082384452,0.7506,2758.3,2757.8,3.62602]
[1740082384652,0.7876,2758.5,2757.8,4.17603]
[1740082384853,4.41276,2758.5,2758.0,3.62574]
[1740082385045,4.41276,2758.5,2758.0,7.25147]
[1740082385245,0.7876,2758.5,2758.1,3.62567]
[1740082385781,4.41282,2758.5,2757.9,3.8177545]
[1740082385975,1.764882,2758.5,2757.9,3.8177545]
[1740082386182,3.62531,2758.4,2757.9,3.8177545]
[1740082386558,3.62531,2758.4,2758.0,3.6258]
[1740082386754,3.62531,2758.4,2758.0,3.8176945]
[1740082387571,8.98531,2758.4,2758.0,3.8176945]
[1740082387773,8.98531,2758.4,2758.0,0.1918945]
[1740082387973,8.98531,2758.4,2757.9,3.6259]
[1740082389986,12.61072,2758.4,2757.9,3.6259]
[1740082390147,8.98531,2758.4,2757.9,3.6259]
[1740082390347,8.98531,2758.4,2757.9,7.25177]
[1740082390572,8.98531,2758.4,2757.9,3.62587]
[1740082391684,12.61069,2758.4,2757.9,3.62587]
[1740082391883,10.4228672,2758.4,2757.9,3.62587]
[1740082392116,10.4228672,2758.4,2757.9,7.25173]
[1740082392387,5.36,2758.4,2758.0,3.6258]
[1740082392583,5.36,2758.4,2758.0,3.62574]
[1740082392889,5.36,2758.4,2758.1,3.6256]
[1740082393185,5.36,2758.4,2758.3,3.62542]
[1740082393388,0.8366,2758.9,2758.3,3.62542]
[1740082393554,1.818703,2758.9,2758.3,3.62542]
[1740082393887,0.0075,2758.8,2758.4,3.62522]
[1740082394269,5.36,2758.8,2758.3,3.62542]
[1740082394668,5.36,2758.8,2758.4,3.62521]
[1740082395394,5.36,2758.8,2758.6,3.62493]
[1740082395560,5.36,2758.8,2758.5,3.62514]
[1740082396468,5.36,2758.8,2758.4,3.6252]
[1740082396674,4.42426,2758.7,2758.2,3.62549]
[1740082396874,8.04926,2758.7,2758.2,3.62549]
[1740082397907,4.42426,2758.7,2758.2,3.62549]
[1740082398203,3.62503,2758.6,2758.2,3.62549]
[1740082398403,0.0075,2758.6,2757.9,4.76967607]
[1740082398603,0.0075,2758.6,2758.2,3.62554]
[1740082398801,0.0075,2758.6,2758.0,0.71537196]
[1740082398985,0.0075,2758.6,2758.1,3.62568]
[1740082399186,0.0075,2758.6,2758.3,3.6253]
[1740082399375,0.0075,2758.6,2758.3,3.62537]
[1740082400068,0.7993,2758.7,2758.3,3.62537]
[1740082400409,0.7993,2758.7,2758.3,3.62532]
[1740082400605,0.7993,2758.7,2758.5,3.62514]
[1740082400799,0.7993,2758.7,2758.3,3.62532]
[1740082400975,4.4242,2758.7,2758.3,3.62532]
[1740082401510,0.7993,2758.7,2758.3,3.62532]
[1740082402511,0.7993,2758.7,2758.3,7.25068]
[1740082402809,0.7993,2758.7,2758.3,3.62532]
[1740082403375,4.42424,2758.7,2758.3,3.62532]
[1740082403578,0.7993,2758.7,2758.3,3.62532]
[1740082403806,4.42422,2758.7,2758.3,3.62532]
[1740082405106,0.7993,2758.7,2758.3,3.62532]
[1740082405308,6.1593,2758.7,2758.3,3.62532]
[1740082407010,9.78419,2758.7,2758.3,3.62532]
[1740082407411,6.1593,2758.7,2758.3,3.62532]
[1740082407914,9.78426,2758.7,2758.3,3.62532]
[1740082409111,9.78426,2758.7,2758.2,3.62549]
[1740082409312,9.78426,2758.7,2758.0,1.75697196]
[1740082409313,3.62502,2758.6,2758.1,4.17566]
[1740082409513,3.62502,2758.6,2758.2,3.62555]
[1740082409683,3.62522,2758.5,2758.0,3.89071]
[1740082410102,3.62522,2758.5,2758.1,3.62566]
[1740082410303,4.41554,2758.4,2758.0,3.89071]
[1740082410496,4.41554,2758.4,2758.0,0.265]
[1740082410697,3.62544,2758.3,2758.0,0.265]
[1740082410897,0.7902,2758.4,2758.0,0.265]
[1740082411100,4.41558,2758.4,2758.0,0.265]
[1740082411422,9.77558,2758.4,2758.0,3.89079]
[1740082412221,6.1502,2758.4,2758.0,7.5165]
[1740082412424,6.1502,2758.4,2758.0,3.89071]
[1740082412730,6.1502,2758.4,2758.0,7.51645]
[1740082412917,6.1502,2758.4,2758.1,0.1917124]
[1740082413638,6.1502,2758.4,2758.1,3.8172924]
[1740082414313,6.1502,2758.4,2758.3,3.62542]
[1740082414314,5.36,2758.4,2758.3,3.62542]
[1740082417174,6.11,2758.8,2758.4,3.62517]
[1740082417337,6.11,2758.8,2758.5,3.62513]
[1740082417846,6.11,2758.8,2758.5,3.62508]
[1740082421188,6.11,2758.8,2758.2,0.7194349]
[1740082421487,6.11,2758.8,2758.5,3.62507]
[1740082421970,6.11,2758.8,2758.5,7.25015]
[1740082422177,5.36,2758.8,2758.7,3.62489]
[1740082422363,5.36,2758.8,2758.6,3.625]
[1740082423056,6.1105,2759.0,2758.6,3.625]
[1740082423362,6.1105,2759.0,2758.5,4.45444]
[1740082424490,6.1105,2759.0,2758.6,0.19196489]
[1740082426204,6.1105,2759.0,2758.7,0.19196489]
[1740082426589,6.148,2759.2,2758.8,3.6247]
[1740082427167,6.148,2759.2,2758.8,4.360618]
[1740082427367,6.148,2759.2,2758.9,3.62462]
[1740082427611,6.148,2759.2,2758.8,4.360658]
[1740082427812,6.148,2759.2,2758.8,5.1592148]
[1740082429117,6.148,2759.2,2758.8,1.5344748]
[1740082429591,3.0075,2759.5,2758.8,1.5344748]
[1740082429592,6.1631,2759.5,2759.1,3.62436]
[1740082429774,6.1631,2759.5,2758.9,4.94724]
[1740082429775,9.78697,2759.5,2758.9,4.94724]
[1740082430111,3.63148,2759.4,2758.9,3.62454]
[1740082430278,0.0075,2759.4,2758.9,8.23411048]
[1740082430480,0.0075,2759.4,2758.9,4.60955048]
[1740082431187,3.63151,2759.4,2758.9,4.60955048]
[1740082431394,0.0075,2759.4,2759.0,3.62443]
[1740082432577,0.0075,2759.4,2758.9,4.60955048]
[1740082432784,0.0075,2759.4,2759.0,0.64090253]
[1740082433102,0.0075,2759.4,2759.0,4.26539253]
[1740082433498,3.63147,2759.4,2759.0,0.64090253]
[1740082433702,3.63147,2759.4,2758.8,5.4241448]
[1740082434524,0.0075,2759.4,2758.9,3.62463]
[1740082434702,3.63154,2759.4,2758.9,3.62463]
[1740082434889,3.63154,2759.4,2758.9,3.81621236]
[1740082436024,3.63154,2759.4,2758.9,3.81614236]
[1740082436200,3.63154,2759.4,2759.0,0.56156172]
[1740082439323,3.63154,2759.4,2758.9,3.62454]
[1740082439916,3.63154,2759.4,2758.9,7.24911]
[1740082440725,3.63154,2759.4,2758.9,3.62454]
[1740082440949,0.0075,2759.4,2759.0,3.62444]
[1740082441105,3.63148,2759.4,2758.9,3.62461]
[1740082441426,3.63148,2759.4,2758.9,8.23423748]
[1740082441794,3.63148,2759.4,2758.9,8.23419748]
[1740082442138,3.63206,2759.0,2758.5,3.89014]
[1740082442328,4.4415,2758.9,2758.5,3.89015]
[1740082442626,0.8168,2758.9,2758.5,3.89015]
[1740082442829,0.8168,2758.9,2758.5,0.265]
[1740082443146,3.62484,2758.8,2758.5,0.265]
[1740082443508,0.7792,2758.9,2758.5,0.265]
[1740082443707,4.40384,2758.9,2758.5,0.265]
[1740082444609,0.7792,2758.9,2758.5,3.89007]
[1740082444810,4.40384,2758.9,2758.5,3.89007]
[1740082445336,0.7792,2758.9,2758.5,3.89007]
[1740082446034,4.40386,2758.9,2758.5,3.89007]
[1740082446636,0.7792,2758.9,2758.5,3.89007]
[1740082446931,6.1392,2758.9,2758.5,3.89007]
[1740082447142,9.76384,2758.9,2758.5,0.265]
[1740082449145,3.62477,2758.8,2758.5,0.265]
[1740082451041,6.1392,2758.9,2758.5,0.265]
[1740082451241,9.76384,2758.9,2758.5,3.89014]
[1740082451446,9.76384,2758.9,2758.5,0.265]
[1740082452191,3.62484,2758.8,2758.5,0.265]
[1740082452848,4.40268,2758.5,2758.0,0.7505]
[1740082453026,3.62534,2758.4,2758.1,0.265]
[1740082453538,3.62534,2758.4,2758.1,0.98983649]
[1740082453841,6.1375,2758.5,2758.1,0.98983649]
[1740082454053,3.62529,2758.4,2758.1,0.98983649]
[1740082454347,0.0075,2758.4,2758.0,3.62573]
[1740082454549,0.0075,2758.4,2758.2,0.19182335]
[1740082455650,3.63279,2758.4,2758.2,0.19182335]
[1740082455815,3.63279,2758.4,2758.0,3.62572]
[1740082456018,0.0075,2758.4,2757.9,1.00627568]
[1740082456212,3.63285,2758.4,2757.9,3.89093]
[1740082456442,3.63285,2758.4,2758.0,3.62571]
[1740082456443,0.0075,2758.4,2758.0,3.62571]
[1740082456955,3.63282,2758.4,2757.9,7.51673]
[1740082457164,3.63282,2758.4,2757.9,3.89085]
[1740082457337,3.62548,2758.3,2757.8,4.39916]
[1740082457538,3.62548,2758.3,2757.8,0.265]
[1740082457743,3.62548,2758.3,2757.8,3.89101]
[1740082458170,3.62542,2758.3,2757.8,3.89101]
[1740082458525,3.62558,2758.2,2757.8,0.265]
[1740082458726,3.62542,2758.3,2757.8,0.265]
[1740082458925,3.62542,2758.3,2757.9,3.62594]
[1740082459462,3.62542,2758.3,2757.8,4.61971649]
[1740082459859,3.62542,2758.3,2757.8,0.72864649]
[1740082459860,0.815,2758.0,2757.8,0.72864649]
[1740082460143,0.815,2758.0,2757.6,0.7879]
[1740082460344,3.62596,2757.9,2757.4,4.4145]
[1740082460532,3.62596,2757.9,2757.5,0.55]
[1740082460947,3.62596,2757.9,2757.5,4.17644]
[1740082461458,6.175,2758.0,2757.5,4.17644]
[1740082461459,9.80082,2758.0,2757.5,4.17644]
[1740082462565,9.80082,2758.0,2757.6,3.62633]
[1740082462852,3.62595,2757.9,2757.4,8.30592]
[1740082463049,3.62595,2757.9,2757.4,3.8915]
[1740082463243,3.62595,2757.9,2757.4,7.51802]
[1740082463454,7.25201,2757.9,2757.4,3.8915]
[1740082463769,3.62595,2757.9,2757.4,3.8915]
[1740082464251,3.62595,2757.9,2757.4,7.51803]
[1740082464432,3.62595,2757.9,2757.4,3.8915]
[1740082464630,0.0075,2757.8,2757.4,3.6265]
[1740082464830,3.63366,2757.8,2757.3,4.3397559]
[1740082465771,0.4887,2757.7,2757.4,3.6266]
[1740082466568,0.4887,2757.7,2757.3,4.3398259]
[1740082466978,0.4887,2757.7,2757.4,3.6266]
[1740082467145,0.4887,2757.7,2757.3,4.3398059]
[1740082468271,0.4887,2757.7,2757.3,0.7131059]
[1740082468272,4.11493,2757.7,2757.3,0.7131059]
[1740082468471,3.62642,2757.6,2757.0,1.0261]
[1740082468640,0.015,2757.6,2756.8,1.8341592]
[1740082468844,4.45387,2757.2,2756.8,1.0730592]
[1740082469043,0.827,2757.2,2756.8,1.0730592]
[1740082469339,4.4539,2757.2,2756.8,1.0730592]
[1740082470774,3.62702,2757.1,2756.8,1.0730592]
[1740082473576,9.81393,2757.2,2756.8,1.0730592]
[1740082475281,6.187,2757.2,2756.8,1.0730592]
[1740082475652,6.187,2757.2,2756.8,4.7004492]
[1740082475852,9.81388,2757.2,2756.8,4.7004492]
[1740082476168,3.627,2757.1,2756.8,1.0730592]
[1740082476373,9.81388,2757.2,2756.8,1.0730592]
[1740082477251,0.0075,2757.1,2756.8,1.0730592]
[1740082483680,3.63456,2757.1,2756.8,1.0730592]
[1740082484459,0.0075,2757.1,2756.8,1.0730592]
[1740082484684,3.6345,2757.1,2756.8,1.0730592]
[1740082485507,8.9945,2757.1,2756.8,1.0730592]
[1740082485659,10.4737438,2757.1,2756.8,1.0730592]
[1740082486155,3.62714,2757.0,2756.8,1.0730592]
[1740082486355,3.62726,2756.9,2756.8,1.0730592]
[1740082487496,4.45956,2756.9,2756.8,1.0730592]
[1740082489765,4.45956,2756.9,2756.5,4.17775]
[1740082490895,4.45956,2756.9,2756.6,0.19158788]
[1740082491199,0.8323,2756.9,2756.6,0.19158788]
[1740082491777,4.4596,2756.9,2756.6,0.19158788]
[1740082496304,4.4596,2756.9,2756.5,3.62776]
[1740082496802,0.8323,2756.9,2756.5,3.62776]
[1740082497004,0.8323,2756.9,2756.5,3.62771]
[1740082497235,4.45957,2756.9,2756.5,3.62771]
[1740082498081,4.45957,2756.9,2756.4,4.35638705]
[1740082498507,4.45957,2756.9,2756.5,3.62772]
[1740082499370,4.45957,2756.9,2756.5,3.81980352]
[1740082500804,4.45957,2756.9,2756.6,0.19208352]
[1740082501312,3.62744,2756.8,2756.6,0.19208352]
[1740082501609,4.45957,2756.9,2756.6,0.19208352]
[1740082502413,4.45957,2756.9,2756.1,0.70856561]
[1740082502414,0.0075,2756.6,2756.1,0.70856561]
[1740082502719,0.0075,2756.6,2756.0,4.71977]
[1740082502720,3.62785,2756.5,2756.0,4.71977]
[1740082502877,3.62785,2756.5,2756.0,1.0914]
[1740082503079,8.98767,2756.6,2756.2,3.62817]
[1740082503583,3.62787,2756.5,2756.1,0.19208163]
[1740082503984,3.62805,2756.3,2756.1,0.19208163]
[1740082504211,4.40445,2756.3,2756.1,0.19208163]
[1740082504414,0.7764,2756.3,2756.1,0.19208163]
[1740082504616,0.0075,2756.4,2756.1,0.19208163]
[1740082504913,0.0075,2756.4,2756.0,3.62844]
[1740082505294,3.63545,2756.4,2756.0,3.62844]
[1740082505881,3.62807,2756.3,2755.8,5.93259432]
[1740082506080,3.62807,2756.3,2755.8,9.56121432]
[1740082506306,7.25622,2756.3,2755.8,5.93259432]
[1740082506518,0.0075,2756.2,2755.8,5.38259432]
[1740082507017,0.7764,2756.1,2755.7,5.53803384]
[1740082507413,3.62844,2756.0,2755.6,0.55]
[1740082507589,3.62844,2756.0,2755.8,0.19175538]
[1740082507997,9.76471,2756.1,2755.8,0.19175538]
[1740082508195,0.0075,2756.0,2755.8,0.19175538]
[1740082508627,3.63597,2756.0,2755.8,0.19175538]
[1740082508929,0.0075,2756.0,2755.7,0.19175538]
[1740082511447,0.0075,2756.0,2755.6,3.6289]
[1740082511739,3.63595,2756.0,2755.6,3.6289]
[1740082513448,0.0075,2756.0,2755.6,3.6289]
[1740082514455,0.0075,2756.0,2755.6,7.25781]
[1740082514757,0.0075,2756.0,2755.7,3.62881]
[1740082515252,6.1364,2756.1,2755.7,0.8729805]
[1740082515553,5.36,2756.1,2756.0,3.62844]
[1740082517040,5.36,2756.1,2756.0,3.81987788]
[1740082517520,5.36,2756.1,2756.0,0.19143788]
[1740082518123,0.846,2756.3,2756.0,0.19143788]
[1740082518351,3.63581,2756.1,2756.0,0.19143788]
[1740082518656,5.22456,2756.1,2756.0,0.19143788]
[1740082518867,3.63606,2756.0,2755.8,0.19143788]
[1740082519070,3.62857,2755.9,2755.8,0.19143788]
[1740082519786,3.62862,2755.9,2755.6,0.19143788]
[1740082519919,3.63595,2756.0,2755.6,0.19143788]
[1740082520128,3.62857,2755.9,2755.6,0.19143788]
[1740082520335,4.15842,2756.0,2755.6,0.19143788]
[1740082520530,0.52997,2756.0,2755.6,3.82040788]
[1740082520737,0.52997,2756.0,2755.6,0.19143788]
[1740082520922,4.15844,2756.0,2755.6,0.19143788]
[1740082521132,0.52997,2756.0,2755.6,3.82039788]
[1740082521345,0.7785,2756.4,2755.8,0.8093]
[1740082521560,0.0075,2756.4,2755.9,4.17857]
[1740082522234,5.36,2756.5,2756.0,0.8093]
[1740082522468,5.36,2756.5,2756.2,3.62818]
[1740082522630,8.98752,2756.7,2756.2,7.25629]
[1740082522833,10.326853,2756.7,2756.2,7.25629]
[1740082523134,10.326853,2756.7,2756.2,7.25621]
[1740082523336,6.699333,2756.7,2756.3,3.62803]
[1740082523531,5.36,2756.7,2756.3,3.62803]
[1740082523938,8.98755,2756.7,2756.3,0.265]
[1740082524483,8.98755,2756.7,2756.0,0.8093]
[1740082524484,4.41812,2756.4,2756.0,0.8093]
[1740082524772,3.6282,2756.2,2755.8,0.8005]
[1740082524997,3.62841,2756.1,2755.8,0.265]
[1740082525146,4.43244,2756.0,2755.8,0.265]
[1740082525486,3.62857,2755.9,2755.4,3.62914]
[1740082525780,3.62857,2755.9,2755.5,0.55]
[1740082525941,6.1639,2756.0,2755.6,0.19162017]
[1740082526141,5.36,2756.0,2755.6,3.82050017]
[1740082526489,5.36,2756.0,2755.7,3.62874]
[1740082527361,5.36,2756.0,2755.8,0.19162017]
[1740082528931,5.36,2756.0,2755.7,3.62874]
[1740082531709,5.36,2756.0,2755.6,4.46176]
[1740082532074,5.36,2756.0,2755.7,3.62882]
[1740082532475,5.36,2756.0,2755.7,3.82058512]
[1740082533588,5.36,2756.0,2755.8,0.19176512]
[1740082535612,5.36,2756.0,2755.7,3.62882]
[1740082535982,0.0075,2756.0,2755.7,3.62882]
[1740082536493,0.0075,2756.0,2755.6,4.46175]
[1740082537178,0.0075,2756.0,2755.7,0.19188068]
[1740082538421,0.0075,2756.0,2755.7,3.82069068]
[1740082538788,0.0075,2756.0,2755.8,0.19188068]
[1740082540718,0.0075,2755.8,2755.2,0.8002]
[1740082540932,4.44453,2755.5,2755.0,1.0431]
[1740082541217,0.8154,2755.5,2755.1,3.62962]
[1740082541423,0.8154,2755.5,2755.1,7.25924]
[1740082541612,0.8154,2755.5,2755.1,3.62962]
[1740082541921,0.8154,2755.5,2755.2,0.19183122]